bitfinex-derivatives/quotes_BTCF0:USTF0_20241003
["timestamp","ask_amount","ask_price","bid_price","bid_amount"]
[1727978994281,0.42273611,60614.0,60613.0,0.001]
[1727978994489,0.49045073,60614.0,60613.0,0.001]
[1727978995592,0.082507,60610.0,60609.0,0.082508]
[1727978995788,0.17356116,60610.0,60609.0,0.082508]
[1727978997214,0.36356116,60610.0,60609.0,0.082508]
[1727978997505,0.36356116,60610.0,60609.0,0.001]
[1727978998413,0.36356116,60610.0,60609.0,0.083508]
[1727979000515,0.36356116,60610.0,60609.0,0.001]
[1727979001007,1.86357201,60610.0,60609.0,0.001]
[1727979001209,1.92275296,60610.0,60609.0,0.001]
[1727979001509,1.99047627,60610.0,60609.0,0.001]
[1727979001914,1.92275296,60610.0,60609.0,0.083508]
[1727979003403,1.65024596,60610.0,60609.0,0.083508]
[1727979003609,0.15024596,60610.0,60609.0,0.083508]
[1727979003824,0.17357201,60610.0,60609.0,0.083508]
[1727979004016,1.67357201,60610.0,60609.0,0.083508]
[1727979004208,1.73275296,60610.0,60609.0,0.083508]
[1727979004407,1.73275296,60610.0,60609.0,0.001]
[1727979004915,1.73275296,60610.0,60609.0,0.083508]
[1727979005115,0.15024596,60610.0,60609.0,0.083508]
[1727979005315,0.09106501,60610.0,60609.0,0.083508]
[1727979005514,1.59106501,60610.0,60609.0,0.083508]
[1727979005724,1.65024596,60610.0,60609.0,0.083508]
[1727979008812,1.5,60610.0,60609.0,0.083508]
[1727979018525,1.582507,60610.0,60609.0,0.083508]
[1727979018827,1.5,60610.0,60609.0,0.083508]
[1727979021625,1.582507,60610.0,60609.0,0.083508]
[1727979021828,1.582507,60610.0,60609.0,0.001]
[1727979022131,1.668907,60610.0,60609.0,0.001]
[1727979023632,1.668907,60610.0,60609.0,0.083508]
[1727979023930,1.75996799,60610.0,60609.0,0.083508]
[1727979024135,1.92492046,60610.0,60609.0,0.083508]
[1727979024625,1.83852046,60610.0,60609.0,0.083508]
[1727979025329,1.75601346,60610.0,60609.0,0.083508]
[1727979025526,1.59106099,60610.0,60609.0,0.083508]
[1727979026133,1.73950721,60610.0,60609.0,0.083508]
[1727979028329,1.59106099,60610.0,60609.0,1.178468]
[1727979028636,0.14844622,60618.0,60615.0,0.0825]
[1727979028839,0.00247485,60623.0,60609.0,1.178468]
[1727979028840,0.13193061,60617.0,60616.0,0.356898]
[1727979029132,1.5,60617.0,60616.0,0.125298]
[1727979029334,0.13193061,60618.0,60617.0,0.082497]
[1727979029831,0.082493,60620.0,60616.0,0.0428]
[1727979029832,0.082493,60620.0,60619.0,0.082494]
[1727979030137,0.082493,60620.0,60617.0,0.082497]
[1727979030138,0.003,60618.0,60617.0,0.082497]
[1727979030435,0.47158035,60620.0,60616.0,0.0428]
[1727979030436,0.082494,60619.0,60616.0,0.0428]
[1727979030629,0.082494,60619.0,60618.0,0.082496]
[1727979030831,0.04121731,60619.0,60618.0,0.20822525]
[1727979032626,0.04121731,60619.0,60618.0,0.20822509]
[1727979033137,0.04121731,60619.0,60618.0,0.20922509]
[1727979033837,0.04121731,60619.0,60618.0,0.21122509]
[1727979035132,1.5,60621.0,60620.0,0.082493]
[1727979035333,1.5,60621.0,60620.0,0.2906257]
[1727979035531,1.5,60621.0,60620.0,0.20822183]
[1727979037046,1.501,60621.0,60620.0,0.20822183]
[1727979038835,1.501,60621.0,60620.0,0.14838083]
[1727979040534,1.501,60621.0,60620.0,0.082493]
[1727979045146,1.501,60621.0,60620.0,0.14838083]
[1727979045334,1.501,60621.0,60620.0,0.082493]
[1727979045538,0.3608,60638.0,60637.0,0.08247]
[1727979045738,0.3608,60638.0,60637.0,0.082468]
[1727979045739,0.23266998,60638.0,60637.0,0.082468]
[1727979046049,1.67350208,60638.0,60637.0,0.082468]
[1727979046352,1.73266998,60638.0,60637.0,0.082468]
[1727979046649,1.92707107,60638.0,60637.0,0.082468]
[1727979046836,1.67820198,60638.0,60637.0,0.082468]
[1727979047041,1.85859307,60638.0,60637.0,0.082468]
[1727979047343,1.61903408,60638.0,60637.0,0.082468]
[1727979047544,1.61903408,60638.0,60637.0,0.272468]
[1727979047746,1.79941834,60638.0,60637.0,0.272468]
[1727979047945,1.61902725,60638.0,60637.0,0.272468]
[1727979048145,1.56839494,60638.0,60637.0,0.272468]
[1727979048348,1.69955793,60638.0,60637.0,0.272468]
[1727979048649,1.56839494,60638.0,60637.0,0.28760208]
[1727979048850,1.55639494,60638.0,60637.0,0.28760208]
[1727979049649,1.54539494,60638.0,60637.0,0.28760208]
[1727979051045,1.54539494,60638.0,60637.0,0.09760208]
[1727979051246,1.54538875,60638.0,60637.0,0.09760208]
[1727979051747,1.505,60638.0,60637.0,0.09760208]
[1727979053446,1.505,60638.0,60637.0,0.082468]
[1727979060452,1.587468,60638.0,60637.0,0.082468]
[1727979060856,1.67848192,60638.0,60637.0,0.082468]
[1727979061158,1.91802786,60638.0,60637.0,0.082468]
[1727979061663,1.67848192,60638.0,60637.0,0.082468]
[1727979062164,1.85887301,60638.0,60637.0,0.082468]
[1727979062954,1.9180288,60638.0,60637.0,0.082468]
[1727979063357,1.73763771,60638.0,60637.0,0.082468]
[1727979063868,1.73763771,60638.0,60632.0,0.082476]
[1727979063869,0.082476,60633.0,60632.0,0.082476]
[1727979064164,0.09101392,60633.0,60620.0,0.36308]
[1727979064362,0.272489,60623.0,60620.0,0.3608]
[1727979064572,0.52757133,60623.0,60621.0,0.082491]
[1727979064761,2.02757133,60623.0,60620.0,0.3608]
[1727979064964,2.02757133,60623.0,60622.0,0.08496441]
[1727979064965,1.75509936,60623.0,60622.0,0.08496441]
[1727979065272,1.59103095,60623.0,60622.0,0.08496441]
[1727979065667,1.83067549,60623.0,60622.0,0.08496441]
[1727979065865,1.65020024,60623.0,60622.0,0.08496441]
[1727979066266,1.73268924,60623.0,60622.0,0.08496441]
[1727979066677,1.73368924,60623.0,60622.0,0.08996441]
[1727979067273,1.73368924,60623.0,60622.0,0.08696441]
[1727979067480,1.73368924,60623.0,60622.0,0.08996441]
[1727979067886,1.583489,60623.0,60622.0,0.08996441]
[1727979068082,1.582489,60623.0,60622.0,0.08896441]
[1727979068885,1.582489,60623.0,60622.0,0.08696441]
[1727979069280,1.582489,60623.0,60622.0,0.00347441]
[1727979069481,1.582489,60623.0,60622.0,0.00447441]
[1727979069686,1.582489,60623.0,60622.0,0.08696441]
[1727979069989,1.583489,60623.0,60622.0,0.00347441]
[1727979070380,1.582489,60623.0,60622.0,0.00347441]
[1727979070685,1.585489,60623.0,60622.0,0.08596441]
[1727979071578,1.585489,60623.0,60622.0,0.08496441]
[1727979072181,1.502,60623.0,60622.0,0.08496441]
[1727979072387,1.503,60623.0,60622.0,0.08496441]
[1727979072582,1.501,60623.0,60622.0,0.08496441]
[1727979072775,1.504,60623.0,60622.0,0.08496441]
[1727979072975,1.504,60623.0,60622.0,0.27496441]
[1727979073181,0.004,60623.0,60622.0,0.3242865]
[1727979073584,1.5,60632.0,60631.0,0.082478]
[1727979073785,1.582477,60632.0,60631.0,0.082478]
[1727979073981,1.5,60632.0,60631.0,0.082478]
[1727979074285,0.3608,60641.0,60640.0,0.082466]
[1727979074485,0.443264,60641.0,60640.0,0.082466]
[1727979074786,1.943264,60641.0,60640.0,0.082466]
[1727979075180,1.8608,60641.0,60633.0,0.04932425]
[1727979075380,0.082467,60640.0,60633.0,0.04932425]
[1727979075582,0.082467,60640.0,60637.0,0.08247]
[1727979075886,0.082467,60640.0,60631.0,0.05615691]
[1727979075887,0.082469,60638.0,60631.0,0.05615691]
[1727979076084,0.16414679,60632.0,60631.0,0.13863491]
[1727979076392,0.25516237,60632.0,60631.0,0.13863491]
[1727979076590,0.09101558,60632.0,60631.0,0.09753491]
[1727979076887,0.27157704,60634.0,60631.0,0.01505691]
[1727979077089,0.27157704,60633.0,60632.0,0.082477]
[1727979077592,0.27157704,60633.0,60631.0,0.001]
[1727979077593,0.082477,60632.0,60631.0,0.001]
[1727979077895,0.082488,60624.0,60621.0,0.0412]
[1727979078098,0.082488,60624.0,60623.0,0.082489]
[1727979078287,0.082489,60623.0,60620.0,0.3608]
[1727979078591,1.75722022,60623.0,60620.0,0.3608]
[1727979078800,1.81638378,60623.0,60620.0,0.3608]
[1727979079396,1.81638378,60623.0,60613.0,0.3608]
[1727979079397,2.00638378,60623.0,60613.0,0.3608]
[1727979079787,2.00638378,60623.0,60622.0,0.00347441]
[1727979080792,3.37957478,60623.0,60609.0,0.082507]
[1727979080991,0.45280181,60610.0,60609.0,0.082507]
[1727979081195,0.36354791,60610.0,60609.0,0.082507]
[1727979082089,0.36454791,60610.0,60609.0,0.091507]
[1727979082397,0.09203891,60610.0,60609.0,0.091507]
[1727979082891,0.18017706,60612.0,60609.0,0.091507]
[1727979083089,0.18017706,60612.0,60611.0,0.13179876]
[1727979083489,0.18017706,60612.0,60611.0,0.082505]
[1727979084689,0.18117706,60612.0,60611.0,0.088505]
[1727979084884,0.18217706,60612.0,60611.0,0.091505]
[1727979085089,0.18217706,60612.0,60611.0,0.15735852]
[1727979085390,0.18217706,60612.0,60611.0,0.34735852]
[1727979085590,0.002,60612.0,60611.0,0.34735852]
[1727979086500,2.1345,60623.0,60611.0,0.34735852]
[1727979086692,0.082495,60619.0,60617.0,0.082497]
[1727979086999,0.082498,60617.0,60615.0,0.082499]
[1727979087386,0.08249,60622.0,60614.0,0.04928761]
[1727979087695,0.082497,60617.0,60616.0,0.082498]
[1727979089393,0.19,60619.0,60616.0,0.003]
[1727979089596,0.443297,60617.0,60616.0,0.003]
[1727979090287,0.443297,60617.0,60616.0,0.085498]
[1727979090996,0.53435169,60617.0,60616.0,0.004]
[1727979091192,0.53435169,60617.0,60616.0,0.086498]
[1727979091702,0.69818756,60617.0,60616.0,0.086498]
[1727979092205,0.69822188,60617.0,60616.0,0.086498]
[1727979092403,0.53435169,60617.0,60616.0,0.086498]
[1727979092603,0.71454804,60617.0,60616.0,0.086498]
[1727979092904,0.77372808,60617.0,60616.0,0.004]
[1727979093398,0.59353173,60617.0,60616.0,0.004]
[1727979095400,0.53435098,60617.0,60616.0,0.004]
[1727979095605,0.53435098,60617.0,60616.0,0.086498]
[1727979095906,0.61597471,60617.0,60616.0,0.086498]
[1727979096108,0.45185398,60617.0,60616.0,0.086498]
[1727979096305,0.09105398,60617.0,60616.0,0.276498]
[1727979096497,0.16412073,60617.0,60616.0,0.276498]
[1727979096693,0.34458265,60619.0,60616.0,0.276498]
[1727979096997,0.16412073,60620.0,60619.0,0.082494]
[1727979097199,0.082492,60621.0,60620.0,0.082493]
[1727979097501,0.24667684,60621.0,60620.0,0.082493]
[1727979097710,0.082492,60621.0,60620.0,0.082493]
[1727979099105,0.082492,60621.0,60620.0,0.084493]
[1727979100015,0.082492,60621.0,60620.0,0.002]
[1727979100611,0.082492,60621.0,60612.0,0.06585352]
[1727979100612,0.082501,60614.0,60613.0,0.082502]
[1727979101310,0.082504,60612.0,60611.0,0.082505]
[1727979101500,0.272504,60612.0,60611.0,0.082505]
[1727979102701,0.082511,60609.0,60608.0,0.082509]
[1727979104403,0.082511,60609.0,60608.0,0.090509]
[1727979104404,0.083511,60609.0,60608.0,0.090509]
[1727979104606,0.084511,60609.0,60608.0,0.094509]
[1727979105905,0.084511,60609.0,60608.0,0.22026545]
[1727979106107,0.084511,60609.0,60608.0,0.31852229]
[1727979107214,0.084511,60609.0,60608.0,0.22026545]
[1727979108013,0.084511,60609.0,60608.0,0.13775645]
[1727979109810,0.084511,60609.0,60608.0,0.22026545]
[1727979110307,0.084511,60609.0,60608.0,0.13775645]
[1727979110509,0.084511,60609.0,60608.0,0.23665793]
[1727979110811,0.084511,60609.0,60608.0,0.13775645]
[1727979111002,0.084511,60609.0,60608.0,0.23665994]
[1727979111815,0.084511,60609.0,60608.0,0.23666443]
[1727979112114,0.084511,60609.0,60608.0,0.13776094]
[1727979113113,0.21585788,60609.0,60608.0,0.012]
[1727979113410,0.25627063,60609.0,60608.0,0.012]
[1727979113619,0.61707063,60609.0,60608.0,0.094509]
[1727979113808,0.48572375,60609.0,60608.0,0.094509]
[1727979117620,0.40321275,60609.0,60608.0,0.094509]
[1727979117811,0.002,60609.0,60608.0,0.094509]
[1727979118707,0.002,60609.0,60608.0,0.284509]
[1727979120516,0.002,60609.0,60608.0,0.094509]
[1727979120717,0.002,60609.0,60608.0,0.284509]
[1727979121113,0.19,60619.0,60608.0,0.284509]
[1727979121114,0.082493,60620.0,60619.0,0.082493]
[1727979121312,0.082492,60621.0,60620.0,0.082493]
[1727979121521,0.082494,60619.0,60618.0,0.082495]
[1727979123022,0.19,60624.0,60617.0,0.01493158]
[1727979123225,0.19,60624.0,60621.0,0.14838935]
[1727979123226,0.082491,60622.0,60621.0,0.14838935]
[1727979123420,0.082491,60622.0,60621.0,0.08249]
[1727979123912,0.082491,60622.0,60621.0,0.14838935]
[1727979124425,0.083491,60622.0,60621.0,0.08249]
[1727979125022,0.083491,60622.0,60621.0,0.14838935]
[1727979125419,0.083491,60622.0,60621.0,0.08249]
[1727979125420,0.084491,60622.0,60621.0,0.08249]
[1727979126119,0.084491,60622.0,60621.0,0.14838935]
[1727979126318,0.084491,60622.0,60621.0,0.08249]
[1727979133726,0.445291,60622.0,60621.0,0.08249]
[1727979133928,0.445291,60622.0,60621.0,0.27249]
[1727979133929,0.3628,60622.0,60621.0,0.27249]
[1727979134431,0.002,60622.0,60621.0,0.27249]
[1727979135436,0.002,60622.0,60621.0,0.36159557]
[1727979135627,0.002,60622.0,60621.0,0.31219]
[1727979135826,0.002,60622.0,60621.0,0.36156026]
[1727979136023,0.002,60622.0,60621.0,0.31219]
[1727979136227,0.09303168,60622.0,60621.0,0.31219]
[1727979138233,0.0423969,60622.0,60621.0,0.31219]
[1727979143132,0.002,60622.0,60621.0,0.31219]
[1727979143339,0.002,60622.0,60621.0,0.36156026]
[1727979146247,0.002,60622.0,60621.0,0.31219]
[1727979147031,0.19,60648.0,60632.0,0.082477]
[1727979147231,0.125869,60638.0,60636.0,0.082471]
[1727979148031,0.01447484,60637.0,60636.0,0.082471]
[1727979148645,0.01447484,60637.0,60636.0,0.083471]
[1727979148646,0.02847484,60637.0,60636.0,0.083471]
[1727979150438,0.03047484,60637.0,60636.0,0.084471]
[1727979151032,0.12149258,60637.0,60636.0,0.084471]
[1727979152136,0.12149258,60637.0,60636.0,0.274471]
[1727979152943,0.03047484,60637.0,60636.0,0.274471]
[1727979153130,0.03047484,60637.0,60636.0,0.273471]
[1727979153131,0.10749074,60637.0,60636.0,0.273471]
[1727979153440,0.10749019,60637.0,60636.0,0.634271]
[1727979153641,0.12049019,60637.0,60636.0,0.635271]
[1727979154440,0.25010595,60637.0,60636.0,0.635271]
[1727979154745,0.10249019,60637.0,60636.0,0.633271]
[1727979155345,0.09849019,60637.0,60636.0,0.633271]
[1727979156446,0.09449019,60637.0,60636.0,0.633271]
[1727979156648,0.09549019,60637.0,60636.0,0.633271]
[1727979157144,0.09301535,60637.0,60636.0,0.633271]
[1727979157343,0.27314873,60637.0,60636.0,0.633271]
[1727979157741,0.09301535,60637.0,60636.0,0.633271]
[1727979158245,0.002,60637.0,60636.0,0.633271]
[1727979164848,0.002,60637.0,60636.0,0.443271]
[1727979165153,0.002,60637.0,60636.0,0.633271]
[1727979166145,0.04238511,60637.0,60636.0,0.633271]
[1727979166546,0.09300511,60637.0,60636.0,0.633271]
[1727979167750,0.1333881,60637.0,60636.0,0.633271]
[1727979167944,0.09300299,60637.0,60636.0,0.633271]
[1727979168444,0.09300299,60637.0,60636.0,0.443271]
[1727979168445,0.14953805,60637.0,60636.0,0.443271]
[1727979168641,0.09300299,60637.0,60636.0,0.443271]
[1727979172053,0.09300299,60637.0,60636.0,0.082471]
[1727979172543,0.09300461,60637.0,60636.0,0.082471]
[1727979173349,0.002,60637.0,60636.0,0.082471]
[1727979173750,0.002,60637.0,60636.0,0.443271]
[1727979174654,0.00247344,60657.0,60656.0,0.082444]
[1727979174860,0.00247344,60657.0,60656.0,0.272444]
[1727979175148,0.0413,60659.0,60658.0,0.082441]
[1727979175349,0.0419,60664.0,60656.0,0.19]
[1727979175652,0.0419,60664.0,60655.0,0.3608]
[1727979175653,0.0419,60664.0,60662.0,0.19]
[1727979176649,0.0519,60664.0,60663.0,0.082434]
[1727979176860,0.09228139,60664.0,60663.0,0.082434]
[1727979177151,0.0519,60664.0,60663.0,0.082434]
[1727979177450,0.0629,60664.0,60663.0,0.082434]
[1727979178150,0.0659,60664.0,60663.0,0.083434]
[1727979178357,0.0659,60664.0,60663.0,0.444234]
[1727979178358,0.028,60664.0,60663.0,0.444234]
[1727979178651,0.028,60664.0,60663.0,0.528134]
[1727979179244,0.21100463,60677.0,60663.0,0.4467]
[1727979179441,0.04037852,60676.0,60675.0,0.082417]
[1727979180647,0.13129374,60676.0,60675.0,0.082417]
[1727979180842,0.13129374,60676.0,60672.0,0.19]
[1727979180843,0.04037852,60676.0,60672.0,0.19]
[1727979181045,0.05337852,60676.0,60675.0,0.083418]
[1727979181349,0.10398962,60676.0,60675.0,0.083418]
[1727979181549,0.10998962,60676.0,60675.0,0.084418]
[1727979182255,0.27403532,60676.0,60675.0,0.084418]
[1727979182555,0.10998962,60676.0,60675.0,0.084418]
[1727979183148,0.27402897,60676.0,60675.0,0.084418]
[1727979183550,0.10998962,60676.0,60675.0,0.084418]
[1727979184146,0.10998962,60676.0,60675.0,0.002]
[1727979185263,0.34005386,60676.0,60675.0,0.002]
[1727979185650,0.19240662,60676.0,60675.0,0.002]
[1727979186160,0.14179552,60676.0,60675.0,0.002]
[1727979187260,0.27293252,60676.0,60675.0,0.002]
[1727979187757,0.69259552,60676.0,60675.0,0.002]
[1727979187959,0.164837,60675.0,60665.0,0.082431]
[1727979188154,0.164837,60675.0,60652.0,0.04337253]
[1727979188155,0.19,60666.0,60659.0,0.01514449]
[1727979188365,0.082439,60660.0,60659.0,0.09758349]
[1727979188663,0.30021265,60660.0,60659.0,0.09758349]
[1727979189055,0.30021265,60660.0,60659.0,0.082439]
[1727979189353,0.30020973,60660.0,60659.0,0.082439]
[1727979189757,0.56255616,60660.0,60659.0,0.082439]
[1727979190060,0.56355616,60660.0,60659.0,0.082439]
[1727979190456,0.56355616,60660.0,60653.0,0.37570876]
[1727979190457,0.082444,60656.0,60655.0,0.082444]
[1727979190658,0.30021473,60656.0,60655.0,0.082444]
[1727979191270,0.56256116,60656.0,60655.0,0.082444]
[1727979191554,0.56256116,60656.0,60653.0,0.3608]
[1727979191754,0.082447,60654.0,60653.0,0.3608]
[1727979191965,0.30021773,60654.0,60653.0,0.3608]
[1727979192151,0.082448,60653.0,60652.0,0.00247253]
[1727979192352,0.23256045,60653.0,60652.0,0.00247253]
[1727979193164,0.30021873,60653.0,60645.0,0.3608]
[1727979193460,0.082457,60648.0,60647.0,0.082456]
[1727979193661,0.30022773,60648.0,60647.0,0.082456]
[1727979193866,0.30022946,60648.0,60647.0,0.082456]
[1727979194160,0.30022946,60648.0,60645.0,0.17926221]
[1727979194349,0.21777246,60647.0,60645.0,0.17926221]
[1727979194557,0.21777246,60646.0,60645.0,0.26172121]
[1727979195261,0.21777246,60646.0,60645.0,0.26372121]
[1727979196261,0.082456,60647.0,60645.0,0.26372121]
[1727979196262,0.04121013,60647.0,60645.0,0.26372121]
[1727979196455,0.04121013,60647.0,60646.0,0.06570834]
[1727979196656,0.082448,60653.0,60645.0,0.3481016]
[1727979196958,0.09777711,60653.0,60651.0,0.04927837]
[1727979197268,0.082449,60652.0,60651.0,0.04927837]
[1727979198353,0.443249,60652.0,60651.0,0.04927837]
[1727979198554,0.443249,60652.0,60648.0,0.0657045]
[1727979198555,0.082453,60649.0,60648.0,0.0657045]
[1727979198756,0.082456,60647.0,60646.0,0.0657045]
[1727979198954,0.082458,60646.0,60645.0,0.002]
[1727979199258,0.082459,60645.0,60644.0,0.0657045]
[1727979199466,0.272459,60645.0,60644.0,0.0657045]
[1727979200150,0.272459,60645.0,60640.0,0.16484539]
[1727979200151,0.08246,60644.0,60640.0,0.16484539]
[1727979200357,0.082464,60641.0,60640.0,0.16484539]
[1727979200560,0.082464,60641.0,60640.0,0.20801786]
[1727979200761,0.082464,60641.0,60640.0,0.08238039]
[1727979200964,0.08246,60644.0,60640.0,0.20783472]
[1727979201162,0.08246,60644.0,60639.0,0.08219821]
[1727979201363,0.08246,60644.0,60643.0,0.06576361]
[1727979201667,0.001,60645.0,60643.0,0.06577852]
[1727979201864,0.001,60645.0,60643.0,0.06577855]
[1727979202068,0.08246,60644.0,60643.0,0.06577855]
[1727979202258,0.08246,60644.0,60643.0,0.14824055]
[1727979202456,0.08246,60644.0,60643.0,0.082462]
[1727979202760,0.08746,60644.0,60643.0,0.082462]
[1727979203160,0.12783816,60644.0,60643.0,0.082462]
[1727979203665,0.12283816,60644.0,60643.0,0.082462]
[1727979203867,0.082467,60640.0,60639.0,0.082466]
[1727979204059,0.12284516,60640.0,60639.0,0.082466]
[1727979205462,0.082471,60637.0,60636.0,0.08247]
[1727979205768,0.082473,60635.0,60634.0,0.00247325]
[1727979206159,0.082473,60635.0,60618.0,0.3608]
[1727979206160,0.08249,60623.0,60618.0,0.3608]
[1727979206358,0.08249,60623.0,60622.0,0.08249]
[1727979207163,0.19,60626.0,60618.0,0.3608]
[1727979207164,0.082485,60626.0,60625.0,0.082486]
[1727979208561,0.082481,60629.0,60628.0,0.082481]
[1727979208762,0.04038757,60629.0,60628.0,0.082482]
[1727979208964,0.082478,60631.0,60630.0,0.082477]
[1727979209262,0.12286524,60631.0,60630.0,0.082477]
[1727979209867,0.3608,60635.0,60627.0,0.19]
[1727979210168,0.04038894,60634.0,60633.0,0.082474]
[1727979211163,0.3608,60635.0,60633.0,0.082474]
[1727979211371,0.3608,60635.0,60631.0,0.0425]
[1727979211372,0.443273,60635.0,60634.0,0.082474]
[1727979211959,0.444273,60635.0,60634.0,0.082474]
[1727979212372,0.444273,60635.0,60634.0,0.14811371]
[1727979212761,0.443273,60635.0,60634.0,0.14811371]
[1727979212965,0.444273,60635.0,60634.0,0.14811371]
[1727979213166,0.3618,60635.0,60634.0,0.082474]
[1727979213662,0.3628,60635.0,60634.0,0.1481046]
[1727979213965,0.3628,60635.0,60634.0,0.082474]
[1727979214665,0.3618,60635.0,60634.0,0.082474]
[1727979215172,0.3608,60635.0,60634.0,0.082474]
[1727979215367,0.3608,60635.0,60634.0,0.086474]
[1727979215568,0.3608,60635.0,60634.0,0.092474]
[1727979215762,0.3608,60635.0,60634.0,0.1581046]
[1727979216157,0.443273,60635.0,60634.0,0.1601046]
[1727979216360,0.443273,60635.0,60634.0,0.1591046]
[1727979216564,0.443273,60635.0,60634.0,0.1531046]
[1727979216767,0.443273,60635.0,60634.0,0.1571046]
[1727979216978,0.443273,60635.0,60634.0,0.091474]
[1727979217270,0.443273,60635.0,60634.0,0.092474]
[1727979217770,0.3608,60635.0,60634.0,0.092474]
[1727979218267,0.39375283,60635.0,60634.0,0.092474]
[1727979218575,0.082473,60635.0,60634.0,0.092474]
[1727979218763,0.082473,60635.0,60634.0,0.091474]
[1727979219365,0.082473,60635.0,60634.0,0.092474]
[1727979219668,0.082473,60635.0,60634.0,0.089474]
[1727979219871,0.082473,60635.0,60634.0,0.084474]
[1727979220063,0.082473,60635.0,60634.0,0.087474]
[1727979221062,0.082469,60638.0,60634.0,0.087474]
[1727979221374,0.082469,60638.0,60637.0,0.08247]
[1727979222769,0.3608,60642.0,60634.0,0.006]
[1727979222969,0.3608,60642.0,60641.0,0.082464]
[1727979223171,0.443263,60642.0,60641.0,0.082464]
[1727979224172,0.443263,60642.0,60637.0,0.002]
[1727979224173,0.00247388,60650.0,60639.0,0.5508]
[1727979224476,0.082456,60648.0,60647.0,0.082456]
[1727979224863,0.00247388,60650.0,60648.0,0.082454]
[1727979225182,0.00247388,60650.0,60641.0,0.19]
[1727979225183,0.001,60642.0,60641.0,0.272464]
[1727979225471,0.00247388,60650.0,60641.0,0.25565469]
[1727979225675,0.008,60648.0,60647.0,0.084456]
[1727979225866,0.008,60648.0,60647.0,0.274456]
[1727979226071,0.007,60648.0,60647.0,0.273456]
[1727979226276,0.00247388,60650.0,60647.0,0.19]
[1727979226277,0.00347388,60650.0,60647.0,0.19]
[1727979226577,0.00347388,60650.0,60649.0,0.082453]
[1727979226776,0.00247388,60650.0,60649.0,0.082453]
[1727979227078,0.04285477,60650.0,60649.0,0.082453]
[1727979227274,0.23285477,60650.0,60647.0,0.001]
[1727979227583,0.082455,60648.0,60647.0,0.001]
[1727979227784,0.12283589,60648.0,60647.0,0.001]
[1727979228077,0.12883589,60648.0,60647.0,0.001]
[1727979228377,0.082456,60647.0,60646.0,0.082458]
[1727979228678,0.12283689,60647.0,60646.0,0.082458]
[1727979229075,0.082456,60647.0,60646.0,0.082458]
[1727979229281,0.12283974,60647.0,60646.0,0.082458]
[1727979229483,0.12283974,60647.0,60646.0,0.083458]
[1727979229782,0.12283974,60647.0,60646.0,0.084458]
[1727979229982,0.12283974,60647.0,60646.0,0.083458]
[1727979231971,0.12283974,60647.0,60646.0,0.084458]
[1727979232680,0.12283974,60647.0,60646.0,0.082458]
[1727979233381,0.082456,60647.0,60646.0,0.082458]
[1727979234678,0.083456,60647.0,60646.0,0.082458]
[1727979235284,0.082456,60647.0,60646.0,0.082458]
[1727979235670,0.082449,60653.0,60652.0,0.082449]
[1727979235886,0.36327378,60661.0,60654.0,0.082447]
[1727979236181,0.3608,60661.0,60652.0,0.272449]
[1727979236378,0.443239,60661.0,60660.0,0.082439]
[1727979236575,0.443237,60661.0,60660.0,0.082439]
[1727979236884,0.443237,60661.0,60656.0,0.19]
[1727979236885,0.082435,60664.0,60663.0,0.082433]
[1727979237088,0.09740793,60664.0,60663.0,0.082433]
[1727979237380,0.082435,60664.0,60663.0,0.082433]
[1727979238082,0.19,60669.0,60656.0,0.272443]
[1727979238083,0.082428,60669.0,60668.0,0.082427]
[1727979238487,0.09758505,60669.0,60668.0,0.082427]
[1727979239774,0.09858505,60669.0,60668.0,0.083427]
[1727979239975,0.45938505,60669.0,60668.0,0.083427]
[1727979240372,0.616492,60669.0,60661.0,0.043]
[1727979240577,0.616492,60669.0,60662.0,0.082433]
[1727979240578,0.272435,60663.0,60662.0,0.082433]
[1727979240784,0.36341149,60663.0,60662.0,0.082433]
[1727979240989,0.40441149,60663.0,60662.0,0.082433]
[1727979241689,0.61784285,60663.0,60662.0,0.082433]
[1727979241885,0.61884285,60663.0,60662.0,0.083433]
[1727979242085,0.46454195,60663.0,60662.0,0.083433]
[1727979242286,0.76621149,60663.0,60661.0,0.001]
[1727979242592,0.76621149,60663.0,60651.0,0.082448]
[1727979242593,0.082451,60652.0,60651.0,0.082448]
[1727979242783,0.082451,60652.0,60649.0,0.00247316]
[1727979242784,0.082452,60650.0,60649.0,0.00247316]
[1727979242980,0.12282441,60650.0,60649.0,0.00247316]
[1727979243178,0.66806849,60650.0,60649.0,0.00247316]
[1727979243377,0.08246,60644.0,60643.0,0.08246]
[1727979243677,0.17343649,60644.0,60643.0,0.08246]
[1727979244979,0.17343649,60644.0,60643.0,0.08646]
[1727979245581,0.17343649,60644.0,60643.0,0.08746]
[1727979246189,0.09197649,60644.0,60643.0,0.08646]
[1727979246388,0.09197649,60644.0,60643.0,0.27646]
[1727979247184,0.09197649,60644.0,60643.0,0.31426]
[1727979247691,0.09197649,60644.0,60643.0,0.12426]
[1727979248190,0.09197649,60644.0,60643.0,0.12826]
[1727979248585,0.04119411,60649.0,60648.0,0.082455]
[1727979248795,0.04119411,60649.0,60648.0,0.14820823]
[1727979249101,0.21343136,60650.0,60646.0,0.082457]
[1727979249102,0.082457,60647.0,60646.0,0.082457]
[1727979249284,0.082457,60647.0,60646.0,0.16464786]
[1727979249479,0.082457,60647.0,60646.0,0.082457]
[1727979249691,0.082457,60647.0,60646.0,0.20812691]
[1727979249987,0.002,60649.0,60648.0,0.082455]
[1727979250386,0.082453,60649.0,60648.0,0.082455]
[1727979250692,0.083453,60649.0,60648.0,0.082455]
[1727979250886,0.001,60649.0,60648.0,0.082455]
[1727979251089,0.001,60649.0,60648.0,0.16465929]
[1727979251796,0.001,60649.0,60648.0,0.082455]
[1727979251984,0.001,60649.0,60648.0,0.16465929]
[1727979252285,0.001,60649.0,60648.0,0.29032553]
[1727979252286,0.084453,60649.0,60648.0,0.29032553]